Workbook

Sheet Ohjeet
B2: Lihanaudan ruokinnan optimointi loppukasvatuskaudella
B3: Työkalu kasvatuksen kannattavuuden vertailuun eri kasvatusajoilla
B5: Työkalun tarkoitus on helpoittaa naudanlihantuottajaa valitsemaan taloudellisin kasvatustehokkuus maitorotuisten sonnien loppukasvatukseen.
B7: Laskuri vaatii toimiakseen Microsoft Excel 2007:n tai uudemman. Toiminta muissa taulukkolaskentaohjelmissa ei ole varmaa.
B8: Excelin Ratkaisin tulee olla asennettuna, jotta laskuri toimisi oikein.
C9: Mikäli Ratkaisinta ei löydy Tiedot-välilehdeltä, katso asennusohjeet tämän sivun alareunasta.
B10: Laskuri on toteutettu Excel- ohjelman alareunassa näkyviin välilehtiin.
B11: Mukaan on liitetty valmiit pohjat tuotantokustannusten sekä kiinteiden kustannusten laskentaan.
B13: Kasvatusaikoja verrataan katetuottojen perusteella sekä kasvatettua eläintä, että koko navetan vuoden tulosta vertailemalla.
B14: Työkalu laskee halvimman seosrehuyhdistelmän molemmille kasvatusajoille Excelin Ratkaisin- ohjelmalla.
B15: Ratkaisijan käyttämä menetelmä on lineaarinen optimointi, joka pyrkii minimoimaan päivittäisen ruokintakustannuksen tiettyjen reunaehtojen puitteissa.
B16: Reunaehtoja ovat:
C17: Energian tarpeen täyttyminen
C18: Pötsin valkuaistaseen oltava yli -10/ syöty kg KA
C19: Kalsiumin tarpeen täyttyminen
C20: Fosforin tarpeen täyttyminen
C21: Rehuannoksen väkirehuprosentti on 20-70
C22: Eläimen syönti on noin 2% elopainosta
B23: Laskentakaavojen sekä käytön yksinkertaistamiseksi joitakin muuttujia on kiinnitetty.
C24: Teuras% 52
C25: Rehun D-arvo on yli 65
B29: Laskurin käyttö
B31: Tarvittavat tiedot syötetään | F31: vaalean oransseihin ruutuihin.
B33: 1. Lähtötiedot
B34: 1. Valitse tukialue.
B35: 2. Lisää eläinmäärä, lihan hinta, laskentakorko sekä lihantuotantoon kohdistuva työmäärä.
B36: 3. Lisää muuttuvat- ja kiinteät kustannukset, sekä palkkatavoite.
C37: Rehun tuotantokustannuksen laskentaan voit käyttää apuna Tuotantokustannus -välilehden laskentataulukkoa
C38: Kiinteiden kustannusten arviointiin voi käyttää apuna Rakennus- ja koneluettelo -välilehden laskentataulukkoa
B40: 2.Suunnittelu
B41: 1. Rehutaulukko:Syötä rehuarvot joko analyysin tai MTT:n rehutaulukoiden perusteella. Mikäli käytetään useampia karkea- tai väkirehuja, pyri arvioimaan seoksen keskiarvo.
B42: 2. Syötä loppukasvatusajan tavoitepituus kumpaankin vertailutaulukkoon.
B43: 3. Syötä eläinten elopaino loppukasvatuskauden alussa. Oletuspaino on 220 kg.
B44: 4. Syötä tavoiteltava teuraspaino kumpaankin vertailutaulukkoon. Laskuri huomauttaa, mikäli bruttokasvutavoite muodostuu liian suureksi.
C45: Tällöin vähennä hieman teuraspainotavoitetta, tai lisää kasvatusaikaa, kunnes kasvunopeus on realistinen.
C46: Mikäli kasvutavoite asetetaan lähelle maksimikasvua ja rehuannoksen energiapitoisuus on vähäinen, laskuri saattaa tehdä rehuyhdistemän, jossa kaikki tavoitteet eivät täyty.
B47: 4. Kun lähtötiedot ovat oikein, paina optimointi- näppäintä, jolloin laskuri laskee halvimmat rehuyhdistelmät molemmile kasvatusajoille
B48: 5. Sivun alareunaan ilmestyy optimoitu rehuannos, sekä eläimen ravinnontarve
B50: 3. Tulokset
B51: Tulokset välilehdellä voi vertailla kasvatusajan vaikutusta tuottojen ja kustannusten muodostumiseen.
B52: Välilehden alalaidassa on nettotulos molemmille kasvatusajoille sekä kasvatettua eläintä, että koko kasvattamon vuosituotosta kohti.
B55: Tuotantokustannus
B56: Tuotantokustannus välilehdellä voi laskea tilalla tuotetulle säilörehulle ja rehuviljalle tuotantokustannuksen.
B57: Kirjoita tarvittavat tiedot Määrä- ja a hinta- sarakkeisiin.
B60: Rakennus- ja koneluettelo
B61: Rakennus- ja koneluettelo välilehdellä voi laskea kiinteitä kustannuksia sekä tuotantokustannusten arviointiin, että varsinaiseen suunnitteluun.
B62: Sivun yläreunassa voi vaihtaa käytettävää laskentakorkokantaa sekä kunnossapito- ja vakuutuskustannusten osuutta hankintahinnasta.
B63: 1. Valitse suunniteltu kestoaika.
B64: 2. Syötä jälleenhankintahinta
B65: 3. Syötä jäännösarvo% jälleenhankintahinnasta.
B66: 4. Syötä tarvittaessa vuotuinen säilytyskustannus
B67: 5. Syötä käytön osuus, joka kohdistuu laskettavaan kohteeseen
B68: 6. Syötä koneella tehtävät peltohehtaarit.
B71: Ratkaisin- apuohjelman asentaminen
B73: 1. Napsauta Microsoft Office -painiketta, valitse Excelin asetukset.
B74: 2. Valitse Apuohjelmat ja valitse sitten Hallinta-ruudussa Excel-apuohjelmat.
B75: 3. Valitse Siirry.
B76: 4. Valitse Käytettävissä olevat apuohjelmat -ruudussa Ratkaisin-apuohjelma -valintaruutu ja napsauta OK-painiketta.
C77: Vihje: Jos Ratkaisin-valintaa ei näy Käytettävissä olevat apuohjelmat -luettelossa, etsi ohjelma valitsemalla Selaa.
B78: Jos näyttöön tulee sanoma, jossa sanotaan, että Ratkaisin-apuohjelma ei ole asennettuna tietokoneessasi, asenna ohjelma valitsemalla Kyllä.
B79: 5. Kun olet ladannut Ratkaisin-apuohjelman, Ratkaisin-komento on käytettävissä Tiedot-välilehden Analyysi-ryhmässä.
B82: Osa välilehdistä on suojattu virheiden estämiseksi. Voit muokata soluja painamalla hiiren oikealla välilehteä ja valitsemalla Poista taulukon suojaus

Sheet 1.Lähtötiedot
B2: Tiedot katelaskelmaan
C4: Määrä | D4: Yksikkö
B5: Tukialue | C5: 2
B6: Eläinten määrä | C6: 100 | D6: kpl
B7: Lihan hinta | C7: 3.1 | D7: €/kg
B8: Laskentakorko | C8: 5 | D8: %
B9: Työtuntien määrä/v | C9: 1800 | D9: h/v
B10: Hyvinvointituki | C10: 50 | D10: €/ey
B12: Muuttuvat kustannukset | C12: Hinta
B13: Säilörehun hinta/kg KA | C13: 0.12 | D13: €/kg KA
B14: Viljan hinta/ kg | C14: 0.18 | D14: €/kg
B15: Kivennäinen hinta/kg | C15: 0.55 | D15: €/kg
B16: Vasikan hinta | C16: 191 | D16: €/ kpl
B17: Muut muuttuvat kust. | C17: 5100 | D17: €/v | E17: Muita muuttuvia kustannuksia ovat mm: lääkintä-, energia- ja kuivituskustannukset.
B19: Palkkatavoite | C19: 15.5 | D19: €/h
B21: Kiinteät kustannukset | C21: Hinta
B22: Navetan koneet | C22: 3200 | D22: €/v | E22: Kiinteisiin kustannuksiin kuuluvat korko-, poisto-, kunnossapito-, vakuutus- sekä verokustannukset.
B23: Rakennukset | C23: 12400 | D23: €/v
B24: Yleiskustannus | C24: 4200 | D24: €/v | E24: Yleiskustannuksia ovat mm: puhelin- ja kirjanpitokustannukset sekä postimaksut.

Sheet 2.Suunnittelu
B2: Suunnittelu
B5: Syötä taulukkoon rehuanalyysin tiedot
B6: Rehut | D6: KA % | E6: MJ | F6: PVT | G6: Ca | H6: P
B7: Karkearehu | D7: 250 | E7: 11 | F7: 39 | G7: 3.8 | H7: 3.6
B8: Väkirehu | D8: 860 | E8: 12.9 | F8: -17 | G8: 0.5 | H8: 4.1
B9: Kivennäinen | D9: 1000 | E9: 0 | F9: 0 | G9: 220 | H9: 0
B12: Vaihtoehto 1 | J12: Vaihtoehto 2
B14: Loppukasvatusaika kk | F14: 12 | J14: Loppukasvatusaika kk | N14: 13
B15: Loppukasvatusaika pv | F15: =F14*30 -> 360 | J15: Loppukasvatusaika pv | N15: =N14*30 -> 390
B16: Elopaino loppukasvatuskauden alussa | F16: 220 | J16: Elopaino loppukasvatuskauden alussa | N16: 220
B17: Teuraspainotavoite | F17: 325 | J17: Teuraspainotavoite | N17: 325
B18: Elopaino teurasiässä (teuras% 52) | F18: =F17*100/52 -> 625 | J18: Elopaino teurasiässä (teuras% 52) | N18: =N17*100/52 -> 625
B19: Bruttokasvu g/pv | F19: =(F18-F16)/F15*1000 -> 1125 | J19: Bruttokasvu g/pv | N19: =(N18-N16)/N15*1000 -> 1038.461538
B20: Maksimikasvu | F20: =-0.7361*F21+1544.5 -> 1233.49775 | G20: =IF(F20<F19,"Kasvunopeus liian suuri","") ->  | J20: Maksimikasvu | N20: =-0.7361*N21+1544.5 -> 1233.49775 | O20: =IF(N20<N19,"Kasvunopeus liian suuri","") -> 
B21: Eläinten keskipaino | F21: =(F18-F16)/2+F16 -> 422.5 | J21: Eläinten keskipaino | N21: =(N18-N16)/2+N16 -> 422.5
B22: Kasvatusaikakerroin | F22: =F15/360 -> 1 | J22: Kasvatusaikakerroin | N22: =N15/360 -> 1.083333333
B25: Esimerkkiruokinta eläin/pv | J25: Esimerkkiruokinta eläin/pv
C26: Annos | D26: KA syönti | E26: MJ | F26: PVT | G26: Ca | H26: P | K26: Annos | L26: KA syönti | M26: MJ | N26: PVT | O26: Ca | P26: P
B27: Karkearehu | C27: =D27/D7*1000 -> 20.59419996 | D27: ='Optimointi 1'!D10 -> 5.148549989 | E27: =D27*E7 -> 56.63404988 | F27: =D27*F7 -> 200.7934496 | G27: =D27*G7 -> 19.56448996 | H27: =D27*H7 -> 18.53477996 | J27: Karkearehu | K27: =L27/D7*1000 -> 26.43440364 | L27: ='Optimointi 2'!D10 -> 6.608600909 | M27: =L27*E7 -> 72.69461 | N27: =L27*F7 -> 257.7354355 | O27: =L27*G7 -> 25.11268345 | P27: =L27*H7 -> 23.79096327
B28: Väkirehu | C28: =D28/D8*1000 -> 3.908955302 | D28: ='Optimointi 1'!C10 -> 3.361701559 | E28: =D28*E8 -> 43.36595012 | F28: =D28*F8 -> -57.14892651 | G28: =D28*G8 -> 1.68085078 | H28: =D28*H8 -> 13.78297639 | J28: Väkirehu | K28: =L28/D8*1000 -> 2.010581395 | L28: ='Optimointi 2'!C10 -> 1.7291 | M28: =L28*E8 -> 22.30539 | N28: =L28*F8 -> -29.3947 | O28: =L28*G8 -> 0.86455 | P28: =L28*H8 -> 7.08931
B29: Kivennäinen | C29: =D29 -> 0.1352484512 | D29: ='Optimointi 1'!E10 -> 0.1352484512 | E29: =D29*E9 -> 0 | F29: =D29*F9 -> 0 | G29: =D29*G9 -> 29.75465926 | H29: =D29*H9 -> 0 | J29: Kivennäinen | K29: =L29 -> 0.1137398479 | L29: ='Optimointi 2'!E10 -> 0.1137398479 | M29: =L29*E9 -> 0 | N29: =L29*F9 -> 0 | O29: =L29*G9 -> 25.02276655 | P29: =L29*H9 -> 0
B30: Yhteensä | C30: =SUM(C27:C29) -> 24.63840371 | D30: =SUM(D27:D29) -> 8.6455 | E30: 100 | F30: 143.6445231 | G30: 51 | H30: 32.31775636 | J30: Yhteensä | K30: =SUM(K27:K29) -> 28.55872488 | L30: =SUM(L27:L29) -> 8.451440757 | M30: 95 | N30: 228.3407355 | O30: 51 | P30: 30.88027327
B31: Tarve | D31: =0.0116*F21+3.7445 -> 8.6455 | E31: =INDEX('Ruokintasuositukset ja tuet'!B7:N20,(VLOOKUP(F21,'Ruokintasuositukset ja tuet'!K44:M57,3,TRUE)),(VLOOKUP(F19,'Ruokintasuositukset ja tuet'!L44:M57,2,TRUE))) -> 100 | F31: =-10*D31 -> -86.455 | G31: =VLOOKUP(F21,'Ruokintasuositukset ja tuet'!R28:V33,2,TRUE) -> 51 | H31: =VLOOKUP(F21,'Ruokintasuositukset ja tuet'!R28:V33,3,TRUE) -> 28 | J31: Tarve | L31: =0.0116*N21+3.7445 -> 8.6455 | M31: =INDEX('Ruokintasuositukset ja tuet'!B7:N20,VLOOKUP(N21,'Ruokintasuositukset ja tuet'!K44:M57,3,TRUE),VLOOKUP(N19,'Ruokintasuositukset ja tuet'!L44:M57,2,TRUE)) -> 95 | N31: =-10*L31 -> -86.455 | O31: =VLOOKUP(N21,'Ruokintasuositukset ja tuet'!R28:V33,2,TRUE) -> 51 | P31: =VLOOKUP(N21,'Ruokintasuositukset ja tuet'!R28:V33,3,TRUE) -> 28

Sheet 3.Tulokset
B2: Katteiden vertailu | F2: ='2.Suunnittelu'!F14 -> 12 | G2: KK | I2: ='2.Suunnittelu'!N14 -> 13 | J2: KK
C4: a hinta (€) | D4: Yksikkö | F4: Määrä | G4: Yhteensä | I4: Määrä | J4: Yhteensä
B5: Tuotot
B6: Liha | C6: ='1.Lähtötiedot'!C7 -> 3.1 | D6: kg | F6: ='2.Suunnittelu'!F17 -> 325 | G6: =C6*F6 -> 1007.5 | I6: ='2.Suunnittelu'!N17 -> 325 | J6: =C6*I6 -> 1007.5
B7: Tilatuen lisäosa | C7: 40 | D7: kpl | F7: ='2.Suunnittelu'!F22 -> 1 | G7: =C7*F7 -> 40 | I7: ='2.Suunnittelu'!N22 -> 1.083333333 | J7: =C7*I7 -> 43.33333333
B8: Sonnipalkkio | C8: ='Ruokintasuositukset ja tuet'!D43 -> 132 | D8: eläin/v | F8: ='2.Suunnittelu'!F22 -> 1 | G8: =C8*F8 -> 132 | I8: ='2.Suunnittelu'!N22 -> 1.083333333 | J8: =C8*I8 -> 143
B9: Kansallinen ey tuki | C9: =VLOOKUP('1.Lähtötiedot'!C5,'Ruokintasuositukset ja tuet'!C44:D45,2) -> 258 | D9: eläin/v | F9: ='2.Suunnittelu'!F22 -> 1 | G9: =C9*F9 -> 258 | I9: ='2.Suunnittelu'!N22 -> 1.083333333 | J9: =C9*I9 -> 279.5
B10: Hyvinvointituki | C10: ='1.Lähtötiedot'!C10*0.6 -> 30 | D10: eläin/v | F10: ='2.Suunnittelu'!F22 -> 1 | G10: =C10*F10 -> 30 | I10: ='2.Suunnittelu'!N22 -> 1.083333333 | J10: =C10*I10 -> 32.5
B11: Katetuotto 1 | G11: =SUM(G6:G10) -> 1467.5 | J11: =SUM(J6:J10) -> 1505.833333
B12: Muuttuvat kulut
B13: Karkearehut | C13: ='1.Lähtötiedot'!C13 -> 0.12 | D13: kg KA | F13: ='2.Suunnittelu'!D27*(360*'2.Suunnittelu'!F22) -> 1853.477996 | G13: =C13*F13 -> 222.4173595 | I13: ='2.Suunnittelu'!L27*(360*'2.Suunnittelu'!N22) -> 2577.354355 | J13: =C13*I13 -> 309.2825225
B14: Väkirehut | C14: ='1.Lähtötiedot'!C14 -> 0.18 | D14: kg | F14: ='2.Suunnittelu'!D28*(360*'2.Suunnittelu'!F22) -> 1210.212561 | G14: =C14*F14 -> 217.8382611 | I14: ='2.Suunnittelu'!L28*(360*'2.Suunnittelu'!N22) -> 674.349 | J14: =C14*I14 -> 121.38282
B15: Kivennäinen | C15: ='1.Lähtötiedot'!C15 -> 0.55 | D15: kg | F15: ='2.Suunnittelu'!D29*(360*'2.Suunnittelu'!F22) -> 48.68944243 | G15: =C15*F15 -> 26.77919333 | I15: ='2.Suunnittelu'!L29*(360*'2.Suunnittelu'!N22) -> 44.35854069 | J15: =C15*I15 -> 24.39719738
B16: Rehut yhteensä | G16: =SUM(G13:G15) -> 467.0348139 | J16: =SUM(J13:J15) -> 455.0625399
B17: Uudistus | C17: ='1.Lähtötiedot'!C16 -> 191 | D17: kpl | F17: 1 | G17: =C17*F17 -> 191 | I17: 1 | J17: =C17*I17 -> 191
B18: Muut muuttuvat kustannukset | C18: ='1.Lähtötiedot'!C17/'1.Lähtötiedot'!C6 -> 51 | D18: yks | F18: ='2.Suunnittelu'!F22 -> 1 | G18: =C18*F18 -> 51 | I18: ='2.Suunnittelu'!N22 -> 1.083333333 | J18: =C18*I18 -> 55.25
B19: Eläinpääoman korko | C19: ='1.Lähtötiedot'!C16 -> 191 | D19: yks | F19: ='1.Lähtötiedot'!C8*F2/12 -> 5 | G19: =C19*F19/100 -> 9.55 | I19: ='1.Lähtötiedot'!C8*I2/12 -> 5.416666667 | J19: =C19*I19/100 -> 10.34583333
B20: Liikepääoman korko (60%) | D20: eur | E20: =0.6*(SUM(G13,G14,G15,G18,G23)) -> 478.2208884 | F20: ='1.Lähtötiedot'!C8*F2/12 -> 5 | G20: =E20*F20/100 -> 23.91104442 | H20: =0.6*(SUM(J13,J14,J15,J18,J23)) -> 487.537524 | I20: ='1.Lähtötiedot'!C8*I2/12 -> 5.416666667 | J20: =H20*I20/100 -> 26.40828255
B21: Muuttuvat kulut yhteensä | G21: =SUM(G16:G20) -> 742.4958583 | J21: =SUM(J16:J20) -> 738.0666558
B22: Katetuotto 2 | G22: =G11-G21 -> 725.0041417 | J22: =J11-J21 -> 767.7666775
B23: Palkka | C23: ='1.Lähtötiedot'!C19 -> 15.5 | D23: €/h | F23: ='1.Lähtötiedot'!C9/'1.Lähtötiedot'!C6*'2.Suunnittelu'!F22 -> 18 | G23: =C23*F23 -> 279 | I23: ='1.Lähtötiedot'!C9/'1.Lähtötiedot'!C6*'2.Suunnittelu'!N22 -> 19.5 | J23: =C23*I23 -> 302.25
B24: Katetuotto 3 | G24: =G22-G23 -> 446.0041417 | J24: =J22-J23 -> 465.5166775
B25: Kiinteät kustannukset
B26: Koneet | C26: ='1.Lähtötiedot'!C22/'1.Lähtötiedot'!C6 -> 32 | D26: eur | F26: ='2.Suunnittelu'!F22 -> 1 | G26: =C26*F26 -> 32 | I26: ='2.Suunnittelu'!N22 -> 1.083333333 | J26: =C26*I26 -> 34.66666667
B27: Rakennukset | C27: ='1.Lähtötiedot'!C23/'1.Lähtötiedot'!C6 -> 124 | D27: eur | F27: ='2.Suunnittelu'!F22 -> 1 | G27: =C27*F27 -> 124 | I27: ='2.Suunnittelu'!N22 -> 1.083333333 | J27: =C27*I27 -> 134.3333333
B28: Yleiskustannus | C28: ='1.Lähtötiedot'!C24/'1.Lähtötiedot'!C6 -> 42 | D28: eur | F28: ='2.Suunnittelu'!F22 -> 1 | G28: =C28*F28 -> 42 | I28: ='2.Suunnittelu'!N22 -> 1.083333333 | J28: =C28*I28 -> 45.5
B29: Nettovoitto/tappio kasvatettua eläintä kohti | G29: =G24-G26-G27-G28 -> 248.0041417 | J29: =J24-J26-J27-J28 -> 251.0166775
B30: Nettovoitto/tappio, kasvattamo/v | G30: ='1.Lähtötiedot'!C6*'3.Tulokset'!G29/'2.Suunnittelu'!F22 -> 24800.41417 | J30: ='1.Lähtötiedot'!C6*'3.Tulokset'!J29/'2.Suunnittelu'!N22 -> 23170.77023

Sheet Optimointi 1
B2: Optimointi 1
C4: väkirehut | D4: karkearehu | E4: Kivennäinen | F4: tarve
B5: energia | C5: ='2.Suunnittelu'!E8 -> 12.9 | D5: ='2.Suunnittelu'!E7 -> 11 | E5: ='2.Suunnittelu'!E9 -> 0 | F5: ='2.Suunnittelu'!E31 -> 100
B6: PVT | C6: ='2.Suunnittelu'!F8 -> -17 | D6: ='2.Suunnittelu'!F7 -> 39 | E6: ='2.Suunnittelu'!F9 -> 0 | F6: =-10*'2.Suunnittelu'!D31 -> -86.455
B7: Ca | C7: ='2.Suunnittelu'!G8 -> 0.5 | D7: ='2.Suunnittelu'!G7 -> 3.8 | E7: ='2.Suunnittelu'!G9 -> 220 | F7: ='2.Suunnittelu'!G31 -> 51
B8: P | C8: ='2.Suunnittelu'!H8 -> 4.1 | D8: ='2.Suunnittelu'!H7 -> 3.6 | E8: ='2.Suunnittelu'!H9 -> 0 | F8: ='2.Suunnittelu'!H31 -> 28
B9: rajoite | C9: 0.2 | D9: 0.3
B10: annos | C10: 3.361701559 | D10: 5.148549989 | E10: 0.1352484512 | F10: ='2.Suunnittelu'!D31 -> 8.6455 | G10: kg/ka pv
B11: hinta | C11: ='1.Lähtötiedot'!C14 -> 0.18 | D11: ='1.Lähtötiedot'!C13 -> 0.12 | E11: ='1.Lähtötiedot'!C15 -> 0.55
B12: R-kust | C12: =C10*C11+D10*D11+E10*E11 -> 1.297318928

Sheet Optimointi 2
B2: Optimointi 2
C4: Väkirehut | D4: Karkearehut | E4: Kivennäinen | F4: tarve
B5: energia | C5: ='2.Suunnittelu'!E8 -> 12.9 | D5: ='2.Suunnittelu'!E7 -> 11 | E5: ='2.Suunnittelu'!E9 -> 0 | F5: ='2.Suunnittelu'!M31 -> 95
B6: PVT | C6: ='2.Suunnittelu'!F8 -> -17 | D6: ='2.Suunnittelu'!F7 -> 39 | E6: ='2.Suunnittelu'!F9 -> 0 | F6: =-10*'2.Suunnittelu'!L31 -> -86.455
B7: Ca | C7: ='2.Suunnittelu'!G8 -> 0.5 | D7: ='2.Suunnittelu'!G7 -> 3.8 | E7: ='2.Suunnittelu'!G9 -> 220 | F7: ='2.Suunnittelu'!O31 -> 51
B8: P | C8: ='2.Suunnittelu'!H8 -> 4.1 | D8: ='2.Suunnittelu'!H7 -> 3.6 | E8: ='2.Suunnittelu'!H9 -> 0 | F8: ='2.Suunnittelu'!P31 -> 28
B9: rajoite | C9: 0.2 | D9: 0.3
B10: annos | C10: 1.7291 | D10: 6.608600909 | E10: 0.1137398479 | F10: ='2.Suunnittelu'!L31 -> 8.6455 | G10: kg/ka pv
B11: hinta | C11: ='1.Lähtötiedot'!C14 -> 0.18 | D11: ='1.Lähtötiedot'!C13 -> 0.12 | E11: ='1.Lähtötiedot'!C15 -> 0.55
B12: R-kust | C12: =C10*C11+D10*D11+E10*E11 -> 1.166827025

Sheet Ruokintasuositukset ja tuet (hidden)
A1: Lihanautojen ruokintasuunnitelma
A2: Ruokintasuositukset
A4: Energiasuositukset | P4: Kivennäissuositukset
B5: Kasvu, g/pv | P5: Lisäkasvu 0,5 kg/pv
A6: Elopaino, kg | B6: 800 | C6: 900 | D6: 1000 | E6: 1100 | F6: 1200 | G6: 1300 | H6: 1400 | I6: 1500 | J6: 1600 | K6: 1700 | L6: 1800 | M6: 1900 | N6: 2000 | R6: Elopaino, | S6: Kivennäissuositus, g/pv
A7: 100-150 | B7: 39 | C7: 41 | D7: 43 | E7: 46 | F7: 49 | G7: 52 | H7: 55 | I7: 58 | J7: 62 | K7: 67 | R7: kg | S7: Ca | T7: P | U7: Mg | V7: Na
A8: 150-200 | B8: 48 | C8: 50 | D8: 53 | E8: 56 | F8: 59 | G8: 63 | H8: 67 | I8: 71 | J8: 75 | K8: 80 | L8: 86 | R8: 100 | S8: 15 | T8: 9 | U8: 3 | V8: 3
A9: 200-250 | B9: 56 | C9: 59 | D9: 62 | E9: 66 | F9: 69 | G9: 73 | H9: 78 | I9: 82 | J9: 87 | K9: 93 | L9: 99 | M9: 106 | R9: 200 | S9: 18 | T9: 10 | U9: 5 | V9: 5
A10: 250-300 | B10: 64 | C10: 68 | D10: 71 | E10: 75 | F10: 79 | G10: 84 | H10: 88 | I10: 94 | J10: 99 | K10: 105 | L10: 112 | M10: 120 | N10: 128 | R10: 300 | S10: 21 | T10: 12 | U10: 7 | V10: 6
A11: 300-350 | B11: 72 | C11: 76 | D11: 80 | E11: 84 | F11: 88 | G11: 93 | H11: 99 | I11: 104 | J11: 111 | K11: 117 | L11: 125 | M11: 133 | N11: 143 | R11: 400 | S11: 27 | T11: 13 | U11: 8 | V11: 8
A12: 350-400 | B12: 79 | C12: 83 | D12: 88 | E12: 92 | F12: 97 | G12: 103 | H12: 108 | I12: 115 | J12: 122 | K12: 129 | L12: 137 | M12: 146 | N12: 157 | R12: 500 | S12: 33 | T12: 14 | U12: 10 | V12: 10
A13: 400-450 | B13: 86 | C13: 91 | D13: 95 | E13: 100 | F13: 106 | G13: 112 | H13: 118 | I13: 125 | J13: 132 | K13: 140 | L13: 149 | M13: 159 | N13: 170 | R13: 600 | S13: 38 | T13: 16 | U13: 12 | V13: 12
A14: 450-500 | B14: 93 | C14: 98 | D14: 103 | E14: 108 | F14: 114 | G14: 120 | H14: 127 | I14: 134 | J14: 142 | K14: 151 | L14: 161 | M14: 171 | N14: 183
A15: 500-550 | B15: 100 | C15: 105 | D15: 110 | E15: 116 | F15: 122 | G15: 129 | H15: 136 | I15: 144 | J15: 152 | K15: 161 | L15: 172 | M15: 183 | N15: 195 | P15: Lisäkasvu 1,0 kg/pv
A16: 550-600 | B16: 106 | C16: 111 | D16: 117 | E16: 123 | F16: 130 | G16: 137 | H16: 145 | I16: 153 | J16: 162 | K16: 171 | L16: 182 | M16: 194 | N16: 207 | R16: Elopaino, | S16: Kivennäissuositus, g/pv
A17: 600-650 | B17: 112 | C17: 118 | D17: 124 | E17: 130 | F17: 137 | G17: 145 | H17: 153 | I17: 161 | J17: 171 | K17: 181 | L17: 193 | M17: 205 | N17: 219 | R17: kg | S17: Ca | T17: P | U17: Mg | V17: Na
A18: 650-700 | B18: 118 | C18: 124 | D18: 131 | E18: 137 | F18: 145 | G18: 152 | H18: 161 | I18: 170 | J18: 180 | K18: 191 | L18: 202 | M18: 215 | R18: 100 | S18: 27 | T18: 16 | U18: 5 | V18: 3
A19: 700-750 | B19: 124 | C19: 130 | D19: 137 | E19: 144 | F19: 152 | G19: 160 | H19: 169 | I19: 178 | J19: 188 | K19: 200 | L19: 212 | R19: 200 | S19: 30 | T19: 17 | U19: 6 | V19: 5
A20: 750-800 | B20: 130 | C20: 136 | D20: 143 | E20: 151 | F20: 159 | G20: 167 | H20: 176 | I20: 186 | J20: 197 | K20: 208 | R20: 300 | S20: 33 | T20: 19 | U20: 8 | V20: 7
R21: 400 | S21: 37 | T21: 20 | U21: 10 | V21: 9
R22: 500 | S22: 40 | T22: 22 | U22: 12 | V22: 11
R23: 600 | S23: 44 | T23: 24 | U23: 13 | V23: 13
A25: Valkuaissuositukset | P25: Lisäkasvu 1,5 kg/pv
B26: Kasvu, g/pv | R26: Elopaino, | S26: Kivennäissuositus, g/pv
A27: Elopaino, kg | B27: 500 | C27: 600 | D27: 700 | E27: 800 | F27: 900 | G27: 1000 | H27: 1100 | I27: 1200 | J27: 1300 | K27: 1400 | L27: 1500 | M27: 1600 | R27: kg | S27: Ca | T27: P | U27: Mg | V27: Na
A28: 100-150 | B28: 204 | C28: 227 | D28: 251 | E28: 275 | F28: 299 | G28: 323 | H28: 347 | I28: 370 | J28: 394 | K28: 418 | L28: 442 | M28: 466 | R28: 100 | S28: 40 | T28: 23 | U28: 6 | V28: 4
A29: 150-200 | B29: 239 | C29: 264 | D29: 290 | E29: 315 | F29: 341 | G29: 366 | H29: 391 | I29: 417 | J29: 442 | K29: 467 | L29: 493 | M29: 518 | R29: 200 | S29: 44 | T29: 25 | U29: 8 | V29: 6
R30: 300 | S30: 46 | T30: 26 | U30: 9 | V30: 8
R31: 400 | S31: 51 | T31: 28 | U31: 11 | V31: 10
R32: 500 | S32: 54 | T32: 30 | U32: 13 | V32: 12
R33: 600 | S33: 57 | T33: 32 | U33: 15 | V33: 14
A35: Vasikoiden ruokintasuositukset
A36: Ikä, kk | B36: Elopaino, kg | C36: Kasvu, g/pv | D36: MJ ME/pv | E36: g OIV/pv
A37: 0-1 | B37: 50 | C37: 400 - 600 | D37: 15 | E37: 180
A38: 1.-2 | B38: 70 | C38: 800 - 1000 | D38: 25 | E38: 260
A39: 2.-3 | B39: 90 | C39: 800 - 1000 | D39: 30 | E39: 300
C42: Tukialue | D42: Sonni
A43: EU nautapalkkio €/eläin | C43: c1-c2 | D43: 132 | K43: Elopaino, kg | L43: Kasvu | M43: sarakehakunumero
A44: 3) Pohj. tuki/ eläin/ vuosi | B44: C1 | C44: 1 | D44: =D48*0.6 -> 253.2 | K44: 100 | L44: 750 | M44: 1
A45: 3) Pohj. tuki/ eläin/ vuosi | B45: C2 | C45: 2 | D45: =0.6*D49 -> 258 | K45: 150 | L45: 850 | M45: 2
K46: 200 | L46: 950 | M46: 3
A47: Eu nautapalkkio €/ey | C47: c1-c2 | D47: 220 | K47: 250 | L47: 1050 | M47: 4
A48: poh-joinen tuki €/eläin-yksikkö | C48: c1 | D48: 422 | K48: 300 | L48: 1150 | M48: 5
A49: poh-joinen tuki €/ eläin-yksikkö | C49: c2 | D49: 430 | K49: 350 | L49: 1250 | M49: 6
K50: 400 | L50: 1350 | M50: 7
K51: 450 | L51: 1450 | M51: 8
K52: 500 | L52: 1550 | M52: 9
K53: 550 | L53: 1650 | M53: 10
K54: 600 | L54: 1750 | M54: 11
K55: 650 | L55: 1850 | M55: 12
K56: 700 | L56: 1950 | M56: 13
K57: 750 | M57: 14

Sheet Tuotantokustannus
B2: Katetuotto- ja tuotantokustannuslaskelma
B3: Tuotot ja kustannukset €/ha
B5: Rehuvilja | C5: Määrä | D5: Yksikkö | E5: a hinta | F5: Yhteensä €/ha/v | H5: Säilörehu | I5: Määrä | J5: Yksikkö | K5: a hinta | L5: Yhteensä €/ha/v
B6: Tuotot: | H6: Tuotot:
B7: Rehuvilja sato | C7: 0 | D7: kg | E7: 0 | F7: =C7*E7 -> 0 | H7: Nurmisato (kuiva-ainesato!) | I7: 0 | J7: kg/KA | K7: 0 | L7: =I7*K7 -> 0
D8: kg | E8: 0 | F8: =C8*E8 -> 0 | I8: 0 | J8: kg | K8: 0 | L8: =I8*K8 -> 0
B9: Tilatuki | C9: 1 | D9: ha | E9: 0 | F9: 0 | H9: Tilatuki | I9: 1 | J9: ha | K9: 0 | L9: 0
B10: Lfa-tuki | C10: 1 | D10: ha | E10: 0 | F10: 0 | H10: Lfa-tuki | I10: 1 | J10: ha | K10: 0 | L10: 0
B11: Ympäristötuki | C11: 1 | D11: ha | E11: 0 | F11: 0 | H11: Ympäristötuki | I11: 1 | J11: ha | K11: 0 | L11: 0
B12: Pohj.tuki | C12: 1 | D12: ha | E12: 0 | F12: 0 | H12: Pohj.tuki | I12: 1 | J12: ha | K12: 0 | L12: 0
B13: Yleinen ha tuki | C13: 1 | D13: ha | E13: 0 | F13: 0 | H13: Yleinen ha tuki | I13: 1 | J13: ha | K13: 0 | L13: 0
B14: Tilatuen tuotantopalkkio | C14: 1 | D14: ha | E14: 0 | F14: 0 | H14: Tilatuen tuotantopalkkio | I14: 1 | J14: ha | K14: 0 | L14: 0
B15: Luomutuki | C15: 1 | D15: ha | E15: 0 | F15: 0 | H15: Luomutuki | I15: 1 | J15: ha | K15: 0 | L15: 0
B16: Tuotot yhteensä | F16: =SUM(F7:F15) -> 0 | H16: Tuotot yhteensä | L16: =SUM(L7:L15) -> 0
B17: Muuttuvat kustannukset: | H17: Muuttuvat kustannukset:
B18: Ostosiemen | C18: 0 | D18: kg | E18: 0 | F18: =C18*E18 -> 0 | H18: Ostosiemen | I18: 0 | J18: kg | K18: 0 | L18: =I18*K18 -> 0
B19: Oma siemen | C19: 0 | D19: kg | E19: 0 | F19: =C19*E19 -> 0 | H19: Oma siemen | I19: 0 | J19: kg | K19: 0 | L19: =I19*K19 -> 0
B20: Kalkitus | C20: 0 | D20: t | E20: 0 | F20: 0 | H20: Kalkitus | I20: 0 | J20: t | K20: 0 | L20: 0
B21: Traktorityö | C21: 0 | D21: h | E21: 0 | F21: 0 | H21: Traktorityö | I21: 0 | J21: h | K21: 0 | L21: 0
B22: Leikkuupuinti | C22: 0 | D22: h | E22: 0 | F22: 0 | H22: Leikkuupuinti | I22: 0 | J22: h | K22: 0 | L22: 0
B23: Kuivatus | C23: 0 | D23: kg | E23: 0 | F23: 0 | H23: Kuivatus | I23: 0 | J23: kg | K23: 0 | L23: 0
B24: Rahti- ja välityspalkkio | C24: 0 | D24: kg | E24: 0 | F24: 0 | H24: Rahti- ja välityspalkkio | I24: 0 | J24: kg | K24: 0 | L24: 0
B25: Luomutarkastusmaksu | C25: 0 | E25: 0 | F25: 0 | H25: Luomutarkastusmaksu | I25: 0 | K25: 0 | L25: 0
F26: =SUM(F18:F25) -> 0 | L26: =SUM(L18:L25) -> 0
B27: Liikepääoman korko | C27: =D27*(F26+F30) -> 0 | D27: 0.6 | E27: 0.05 | F27: =C27*E27 -> 0 | H27: Liikepääoman korko | I27: =J27*(L26+L30) -> 0 | J27: 0.6 | K27: 0.05 | L27: =I27*K27 -> 0
B28: Muuttuvat kustannukset yhteensä: | F28: =SUM(F26:F27) -> 0 | H28: Muuttuvat kustannukset yhteensä: | L28: =SUM(L26:L27) -> 0
B29: KATETUOTTO 1 | F29: =F16-F28 -> 0 | H29: KATETUOTTO 1 | L29: =L16-L28 -> 0
B30: Työkustannus | C30: 0 | D30: h | E30: 15.5 | F30: =C30*E30 -> 0 | H30: Työkustannus | I30: 0 | J30: h | K30: 15.5 | L30: =I30*K30 -> 0
B31: KATETUOTTO 2 | F31: =F29-F30 -> 0 | H31: KATETUOTTO 2 | L31: =L29-L30 -> 0
B32: Kone-,rakennus- ja yleiskustannukset | H32: Kone-,rakennus- ja yleiskustannukset
B33: Traktori | C33: 1 | D33: ha | E33: 0 | F33: =C33*E33 -> 0 | H33: Traktori | I33: 1 | J33: ha | K33: 0 | L33: =I33*K33 -> 0
B34: Puimuri | C34: 1 | D34: ha | E34: 0 | F34: =C34*E34 -> 0 | H34: Puimuri | I34: 1 | J34: ha | K34: 0 | L34: =I34*K34 -> 0
B35: Kuivurin koneet | C35: 1 | D35: ha | E35: 0 | F35: 0 | H35: Kuivurin koneet | I35: 1 | J35: ha | K35: 0 | L35: 0
B36: Muut koneet | C36: 1 | D36: ha | E36: 0 | F36: 0 | H36: Muut koneet | I36: 1 | J36: ha | K36: 0 | L36: 0
B37: Konekustannukset yhteensä | F37: =SUM(F33:F36) -> 0 | H37: Konekustannukset yhteensä | L37: =SUM(L33:L36) -> 0
B38: Kuivurirakennus | C38: 1 | D38: ha | E38: 0 | F38: =C38*E38 -> 0 | H38: Kuivurirakennus | I38: 1 | J38: ha | K38: 0 | L38: =I38*K38 -> 0
B39: Konehalli | C39: 1 | D39: ha | E39: 0 | F39: =C39*E39 -> 0 | H39: Konehalli | I39: 1 | J39: ha | K39: 0 | L39: =I39*K39 -> 0
B40: Rakennskustannukset yhteensä | C40: 1 | D40: ha | E40: 0 | F40: 0 | H40: Rakennskustannukset yhteensä | I40: 1 | J40: ha | K40: 0 | L40: 0
B41: Yleiskustannukset | C41: 1 | D41: ha | E41: 0 | F41: 0 | H41: Yleiskustannukset | I41: 1 | J41: ha | K41: 0 | L41: 0
B42: Kone-,rakennus- ja yleiskustannukset yht. | F42: =SUM(F37:F41) -> 0 | H42: Kone-,rakennus- ja yleiskustannukset yht. | L42: =SUM(L37:L41) -> 0
B43: KATETUOTTO 3 | F43: =F31-F42 -> 0 | H43: KATETUOTTO 3 | L43: =L31-L42 -> 0
B44: Pellon kustannukset | C44: 1 | D44: ha | E44: 0 | F44: =C44*E44 -> 0 | H44: Pellon kustannukset | I44: 1 | J44: ha | K44: 0 | L44: =I44*K44 -> 0
B45: Pellon korko | C45: 1 | D45: ha | E45: 0 | F45: =C45*E45 -> 0 | H45: Pellon korko | I45: 1 | J45: ha | K45: 0 | L45: =I45*K45 -> 0
B46: Salaojituksen kustannukset | C46: 1 | D46: ha | E46: 0 | F46: 0 | H46: Salaojituksen kustannukset | I46: 1 | J46: ha | K46: 0 | L46: 0
B47: Pellon kustannukset yhteensä | F47: =SUM(F44,F45,F46) -> 0 | H47: Pellon kustannukset yhteensä | L47: =SUM(L44,L45,L46) -> 0
B48: Nettovoitto/tappio (yrittäjätulo) | F48: =F43-F47 -> 0 | H48: Nettovoitto/tappio (yrittäjätulo) | L48: =L43-L47 -> 0
B49: Tuotantokustannus €/ha | F49: =SUM(F28,F30,F42,F47) -> 0 | H49: Tuotantokustannus €/ha | L49: =SUM(L28,L30,L42,L47) -> 0
B50: Tuotantokustannus €/kg | F50: =F49/C7 ->  | H50: Tuotantokustannus €/kg | L50: =L49/I7 -> 
B51: Tuettu tuotantokustannus €/kg | C51: tuet €/kg | D51: =(SUM(F9:F15))/C7 ->  | F51: =F50-D51 ->  | H51: Tuettu tuotantokustannus €/kg | I51: tuet €/kg | J51: =(SUM(L9:L15))/I7 ->  | L51: =L50-J51 -> 

Sheet Rakennus- ja koneluettelo
B2: Kone- ja rakennusluettelo ja rakennusten vuotuiset kustannukset
B4: Laskentakorko | C4: 0.05
B5: Kunnossapitokustannus | C5: 0.02 | D5: hankintahinnasta
B6: Vakuutuskustannus | C6: 0.005 | D6: hankintahinnasta
B8: Rakennnusluettelo | C8: Kestoaika | D8: Jälleenhankinta-arvo | E8: JA% JHA:sta | F8: Jäännös arvo | G8: Korko €/v | H8: Poisto €/v | I8: Kunnossapito €/v | J8: Vakuutus €/v | K8: Säilytys | L8: Vuotuiskustannus yhteensä €/v | M8: Navetan/ peltyön osuus kustannuksista | N8: Vuotuiskustannus yhteensä | O8: Pellon määrä/laskettava kone | P8: Kustannukset/ ha
B9: Kuivaamo | F9: =Taulukko1[[#This Row],[Jälleenhankinta-arvo]]*Taulukko1[[#This Row],[JA% JHA:sta]] -> 0 | G9: =$C$4*(Taulukko1[[#This Row],[Jälleenhankinta-arvo]]+Taulukko1[[#This Row],[Jäännös arvo]])/2 -> 0 | H9: =(Taulukko1[[#This Row],[Jälleenhankinta-arvo]]-Taulukko1[[#This Row],[Jäännös arvo]])/Taulukko1[[#This Row],[Kestoaika]] ->  | I9: =$C$5*Taulukko1[[#This Row],[Jälleenhankinta-arvo]] -> 0 | J9: =$C$6*Taulukko1[[#This Row],[Jälleenhankinta-arvo]] -> 0 | L9: =SUM(G9:K9) ->  | M9: 0 | N9: =Taulukko1[[#This Row],[Vuotuiskustannus yhteensä €/v]]*Taulukko1[[#This Row],[Navetan/ peltyön osuus kustannuksista]] ->  | P9: =Taulukko1[[#This Row],[Vuotuiskustannus yhteensä]]/Taulukko1[[#This Row],[Pellon määrä/laskettava kone]] -> 
B10: Rehuvarasto | F10: =Taulukko1[[#This Row],[Jälleenhankinta-arvo]]*Taulukko1[[#This Row],[JA% JHA:sta]] -> 0 | G10: =$C$4*(Taulukko1[[#This Row],[Jälleenhankinta-arvo]]+Taulukko1[[#This Row],[Jäännös arvo]])/2 -> 0 | H10: =(Taulukko1[[#This Row],[Jälleenhankinta-arvo]]-Taulukko1[[#This Row],[Jäännös arvo]])/Taulukko1[[#This Row],[Kestoaika]] ->  | I10: =$C$5*Taulukko1[[#This Row],[Jälleenhankinta-arvo]] -> 0 | J10: =$C$6*Taulukko1[[#This Row],[Jälleenhankinta-arvo]] -> 0 | M10: 0 | N10: =Taulukko1[[#This Row],[Vuotuiskustannus yhteensä €/v]]*Taulukko1[[#This Row],[Navetan/ peltyön osuus kustannuksista]] ->  | P10: =Taulukko1[[#This Row],[Vuotuiskustannus yhteensä]]/Taulukko1[[#This Row],[Pellon määrä/laskettava kone]] -> 
B11: Kuivaamo | F11: =Taulukko1[[#This Row],[Jälleenhankinta-arvo]]*Taulukko1[[#This Row],[JA% JHA:sta]] -> 0 | G11: =$C$4*(Taulukko1[[#This Row],[Jälleenhankinta-arvo]]+Taulukko1[[#This Row],[Jäännös arvo]])/2 -> 0 | H11: =(Taulukko1[[#This Row],[Jälleenhankinta-arvo]]-Taulukko1[[#This Row],[Jäännös arvo]])/Taulukko1[[#This Row],[Kestoaika]] ->  | I11: =$C$5*Taulukko1[[#This Row],[Jälleenhankinta-arvo]] -> 0 | J11: =$C$6*Taulukko1[[#This Row],[Jälleenhankinta-arvo]] -> 0 | M11: 0 | N11: =Taulukko1[[#This Row],[Vuotuiskustannus yhteensä €/v]]*Taulukko1[[#This Row],[Navetan/ peltyön osuus kustannuksista]] ->  | P11: =Taulukko1[[#This Row],[Vuotuiskustannus yhteensä]]/Taulukko1[[#This Row],[Pellon määrä/laskettava kone]] -> 
F12: =Taulukko1[[#This Row],[Jälleenhankinta-arvo]]*Taulukko1[[#This Row],[JA% JHA:sta]] -> 0 | G12: =$C$4*(Taulukko1[[#This Row],[Jälleenhankinta-arvo]]+Taulukko1[[#This Row],[Jäännös arvo]])/2 -> 0 | H12: =(Taulukko1[[#This Row],[Jälleenhankinta-arvo]]-Taulukko1[[#This Row],[Jäännös arvo]])/Taulukko1[[#This Row],[Kestoaika]] ->  | I12: =$C$5*Taulukko1[[#This Row],[Jälleenhankinta-arvo]] -> 0 | J12: =$C$6*Taulukko1[[#This Row],[Jälleenhankinta-arvo]] -> 0 | M12: 0 | N12: =Taulukko1[[#This Row],[Vuotuiskustannus yhteensä €/v]]*Taulukko1[[#This Row],[Navetan/ peltyön osuus kustannuksista]] ->  | P12: =Taulukko1[[#This Row],[Vuotuiskustannus yhteensä]]/Taulukko1[[#This Row],[Pellon määrä/laskettava kone]] -> 
F13: =Taulukko1[[#This Row],[Jälleenhankinta-arvo]]*Taulukko1[[#This Row],[JA% JHA:sta]] -> 0 | G13: =$C$4*(Taulukko1[[#This Row],[Jälleenhankinta-arvo]]+Taulukko1[[#This Row],[Jäännös arvo]])/2 -> 0 | H13: =(Taulukko1[[#This Row],[Jälleenhankinta-arvo]]-Taulukko1[[#This Row],[Jäännös arvo]])/Taulukko1[[#This Row],[Kestoaika]] ->  | I13: =$C$5*Taulukko1[[#This Row],[Jälleenhankinta-arvo]] -> 0 | J13: =$C$6*Taulukko1[[#This Row],[Jälleenhankinta-arvo]] -> 0 | M13: 0 | N13: =Taulukko1[[#This Row],[Vuotuiskustannus yhteensä €/v]]*Taulukko1[[#This Row],[Navetan/ peltyön osuus kustannuksista]] ->  | P13: =Taulukko1[[#This Row],[Vuotuiskustannus yhteensä]]/Taulukko1[[#This Row],[Pellon määrä/laskettava kone]] -> 
B14: Koneluettelo | F14: =Taulukko1[[#This Row],[Jälleenhankinta-arvo]]*Taulukko1[[#This Row],[JA% JHA:sta]] -> 0 | G14: =$C$4*(Taulukko1[[#This Row],[Jälleenhankinta-arvo]]+Taulukko1[[#This Row],[Jäännös arvo]])/2 -> 0 | H14: =(Taulukko1[[#This Row],[Jälleenhankinta-arvo]]-Taulukko1[[#This Row],[Jäännös arvo]])/Taulukko1[[#This Row],[Kestoaika]] ->  | I14: =$C$5*Taulukko1[[#This Row],[Jälleenhankinta-arvo]] -> 0 | J14: =$C$6*Taulukko1[[#This Row],[Jälleenhankinta-arvo]] -> 0 | M14: 0 | N14: =Taulukko1[[#This Row],[Vuotuiskustannus yhteensä €/v]]*Taulukko1[[#This Row],[Navetan/ peltyön osuus kustannuksista]] ->  | P14: =Taulukko1[[#This Row],[Vuotuiskustannus yhteensä]]/Taulukko1[[#This Row],[Pellon määrä/laskettava kone]] -> 
B15: Navetan koneet | F15: =Taulukko1[[#This Row],[Jälleenhankinta-arvo]]*Taulukko1[[#This Row],[JA% JHA:sta]] -> 0 | G15: =$C$4*(Taulukko1[[#This Row],[Jälleenhankinta-arvo]]+Taulukko1[[#This Row],[Jäännös arvo]])/2 -> 0 | H15: =(Taulukko1[[#This Row],[Jälleenhankinta-arvo]]-Taulukko1[[#This Row],[Jäännös arvo]])/Taulukko1[[#This Row],[Kestoaika]] ->  | I15: =$C$5*Taulukko1[[#This Row],[Jälleenhankinta-arvo]] -> 0 | J15: =$C$6*Taulukko1[[#This Row],[Jälleenhankinta-arvo]] -> 0 | L15: =SUM(G15:K15) ->  | M15: 0 | N15: =Taulukko1[[#This Row],[Vuotuiskustannus yhteensä €/v]]*Taulukko1[[#This Row],[Navetan/ peltyön osuus kustannuksista]] ->  | P15: =Taulukko1[[#This Row],[Vuotuiskustannus yhteensä]]/Taulukko1[[#This Row],[Pellon määrä/laskettava kone]] -> 
B16: Traktori | F16: =Taulukko1[[#This Row],[Jälleenhankinta-arvo]]*Taulukko1[[#This Row],[JA% JHA:sta]] -> 0 | G16: =$C$4*(Taulukko1[[#This Row],[Jälleenhankinta-arvo]]+Taulukko1[[#This Row],[Jäännös arvo]])/2 -> 0 | H16: =(Taulukko1[[#This Row],[Jälleenhankinta-arvo]]-Taulukko1[[#This Row],[Jäännös arvo]])/Taulukko1[[#This Row],[Kestoaika]] ->  | I16: =$C$5*Taulukko1[[#This Row],[Jälleenhankinta-arvo]] -> 0 | J16: =$C$6*Taulukko1[[#This Row],[Jälleenhankinta-arvo]] -> 0 | M16: 0 | N16: =Taulukko1[[#This Row],[Vuotuiskustannus yhteensä €/v]]*Taulukko1[[#This Row],[Navetan/ peltyön osuus kustannuksista]] ->  | P16: =Taulukko1[[#This Row],[Vuotuiskustannus yhteensä]]/Taulukko1[[#This Row],[Pellon määrä/laskettava kone]] -> 
B17: Puimuri | F17: =Taulukko1[[#This Row],[Jälleenhankinta-arvo]]*Taulukko1[[#This Row],[JA% JHA:sta]] -> 0 | G17: =$C$4*(Taulukko1[[#This Row],[Jälleenhankinta-arvo]]+Taulukko1[[#This Row],[Jäännös arvo]])/2 -> 0 | H17: =(Taulukko1[[#This Row],[Jälleenhankinta-arvo]]-Taulukko1[[#This Row],[Jäännös arvo]])/Taulukko1[[#This Row],[Kestoaika]] ->  | I17: =$C$5*Taulukko1[[#This Row],[Jälleenhankinta-arvo]] -> 0 | J17: =$C$6*Taulukko1[[#This Row],[Jälleenhankinta-arvo]] -> 0 | M17: 0 | N17: =Taulukko1[[#This Row],[Vuotuiskustannus yhteensä €/v]]*Taulukko1[[#This Row],[Navetan/ peltyön osuus kustannuksista]] ->  | P17: =Taulukko1[[#This Row],[Vuotuiskustannus yhteensä]]/Taulukko1[[#This Row],[Pellon määrä/laskettava kone]] -> 
B18: Aurat | F18: =Taulukko1[[#This Row],[Jälleenhankinta-arvo]]*Taulukko1[[#This Row],[JA% JHA:sta]] -> 0 | G18: =$C$4*(Taulukko1[[#This Row],[Jälleenhankinta-arvo]]+Taulukko1[[#This Row],[Jäännös arvo]])/2 -> 0 | H18: =(Taulukko1[[#This Row],[Jälleenhankinta-arvo]]-Taulukko1[[#This Row],[Jäännös arvo]])/Taulukko1[[#This Row],[Kestoaika]] ->  | I18: =$C$5*Taulukko1[[#This Row],[Jälleenhankinta-arvo]] -> 0 | J18: =$C$6*Taulukko1[[#This Row],[Jälleenhankinta-arvo]] -> 0 | M18: 0 | N18: =Taulukko1[[#This Row],[Vuotuiskustannus yhteensä €/v]]*Taulukko1[[#This Row],[Navetan/ peltyön osuus kustannuksista]] ->  | P18: =Taulukko1[[#This Row],[Vuotuiskustannus yhteensä]]/Taulukko1[[#This Row],[Pellon määrä/laskettava kone]] -> 
B19: Äes | F19: =Taulukko1[[#This Row],[Jälleenhankinta-arvo]]*Taulukko1[[#This Row],[JA% JHA:sta]] -> 0 | G19: =$C$4*(Taulukko1[[#This Row],[Jälleenhankinta-arvo]]+Taulukko1[[#This Row],[Jäännös arvo]])/2 -> 0 | H19: =(Taulukko1[[#This Row],[Jälleenhankinta-arvo]]-Taulukko1[[#This Row],[Jäännös arvo]])/Taulukko1[[#This Row],[Kestoaika]] ->  | I19: =$C$5*Taulukko1[[#This Row],[Jälleenhankinta-arvo]] -> 0 | J19: =$C$6*Taulukko1[[#This Row],[Jälleenhankinta-arvo]] -> 0 | M19: 0 | N19: =Taulukko1[[#This Row],[Vuotuiskustannus yhteensä €/v]]*Taulukko1[[#This Row],[Navetan/ peltyön osuus kustannuksista]] ->  | P19: =Taulukko1[[#This Row],[Vuotuiskustannus yhteensä]]/Taulukko1[[#This Row],[Pellon määrä/laskettava kone]] -> 
B20: Kylvökone | F20: =Taulukko1[[#This Row],[Jälleenhankinta-arvo]]*Taulukko1[[#This Row],[JA% JHA:sta]] -> 0 | G20: =$C$4*(Taulukko1[[#This Row],[Jälleenhankinta-arvo]]+Taulukko1[[#This Row],[Jäännös arvo]])/2 -> 0 | H20: =(Taulukko1[[#This Row],[Jälleenhankinta-arvo]]-Taulukko1[[#This Row],[Jäännös arvo]])/Taulukko1[[#This Row],[Kestoaika]] ->  | I20: =$C$5*Taulukko1[[#This Row],[Jälleenhankinta-arvo]] -> 0 | J20: =$C$6*Taulukko1[[#This Row],[Jälleenhankinta-arvo]] -> 0 | M20: 0 | N20: =Taulukko1[[#This Row],[Vuotuiskustannus yhteensä €/v]]*Taulukko1[[#This Row],[Navetan/ peltyön osuus kustannuksista]] ->  | P20: =Taulukko1[[#This Row],[Vuotuiskustannus yhteensä]]/Taulukko1[[#This Row],[Pellon määrä/laskettava kone]] -> 
B21: Kasvinsuojeluruisku | F21: =Taulukko1[[#This Row],[Jälleenhankinta-arvo]]*Taulukko1[[#This Row],[JA% JHA:sta]] -> 0 | G21: =$C$4*(Taulukko1[[#This Row],[Jälleenhankinta-arvo]]+Taulukko1[[#This Row],[Jäännös arvo]])/2 -> 0 | H21: =(Taulukko1[[#This Row],[Jälleenhankinta-arvo]]-Taulukko1[[#This Row],[Jäännös arvo]])/Taulukko1[[#This Row],[Kestoaika]] ->  | I21: =$C$5*Taulukko1[[#This Row],[Jälleenhankinta-arvo]] -> 0 | J21: =$C$6*Taulukko1[[#This Row],[Jälleenhankinta-arvo]] -> 0 | M21: 0 | N21: =Taulukko1[[#This Row],[Vuotuiskustannus yhteensä €/v]]*Taulukko1[[#This Row],[Navetan/ peltyön osuus kustannuksista]] ->  | P21: =Taulukko1[[#This Row],[Vuotuiskustannus yhteensä]]/Taulukko1[[#This Row],[Pellon määrä/laskettava kone]] -> 
B22: Peräkärry | F22: =Taulukko1[[#This Row],[Jälleenhankinta-arvo]]*Taulukko1[[#This Row],[JA% JHA:sta]] -> 0 | G22: =$C$4*(Taulukko1[[#This Row],[Jälleenhankinta-arvo]]+Taulukko1[[#This Row],[Jäännös arvo]])/2 -> 0 | H22: =(Taulukko1[[#This Row],[Jälleenhankinta-arvo]]-Taulukko1[[#This Row],[Jäännös arvo]])/Taulukko1[[#This Row],[Kestoaika]] ->  | I22: =$C$5*Taulukko1[[#This Row],[Jälleenhankinta-arvo]] -> 0 | J22: =$C$6*Taulukko1[[#This Row],[Jälleenhankinta-arvo]] -> 0 | M22: 0 | N22: =Taulukko1[[#This Row],[Vuotuiskustannus yhteensä €/v]]*Taulukko1[[#This Row],[Navetan/ peltyön osuus kustannuksista]] ->  | P22: =Taulukko1[[#This Row],[Vuotuiskustannus yhteensä]]/Taulukko1[[#This Row],[Pellon määrä/laskettava kone]] -> 
B23: Yleisperäkärry | F23: =Taulukko1[[#This Row],[Jälleenhankinta-arvo]]*Taulukko1[[#This Row],[JA% JHA:sta]] -> 0 | G23: =$C$4*(Taulukko1[[#This Row],[Jälleenhankinta-arvo]]+Taulukko1[[#This Row],[Jäännös arvo]])/2 -> 0 | H23: =(Taulukko1[[#This Row],[Jälleenhankinta-arvo]]-Taulukko1[[#This Row],[Jäännös arvo]])/Taulukko1[[#This Row],[Kestoaika]] ->  | I23: =$C$5*Taulukko1[[#This Row],[Jälleenhankinta-arvo]] -> 0 | J23: =$C$6*Taulukko1[[#This Row],[Jälleenhankinta-arvo]] -> 0 | M23: 0 | N23: =Taulukko1[[#This Row],[Vuotuiskustannus yhteensä €/v]]*Taulukko1[[#This Row],[Navetan/ peltyön osuus kustannuksista]] ->  | P23: =Taulukko1[[#This Row],[Vuotuiskustannus yhteensä]]/Taulukko1[[#This Row],[Pellon määrä/laskettava kone]] -> 
B24: Lietevaunu | F24: =Taulukko1[[#This Row],[Jälleenhankinta-arvo]]*Taulukko1[[#This Row],[JA% JHA:sta]] -> 0 | G24: =$C$4*(Taulukko1[[#This Row],[Jälleenhankinta-arvo]]+Taulukko1[[#This Row],[Jäännös arvo]])/2 -> 0 | H24: =(Taulukko1[[#This Row],[Jälleenhankinta-arvo]]-Taulukko1[[#This Row],[Jäännös arvo]])/Taulukko1[[#This Row],[Kestoaika]] ->  | I24: =$C$5*Taulukko1[[#This Row],[Jälleenhankinta-arvo]] -> 0 | J24: =$C$6*Taulukko1[[#This Row],[Jälleenhankinta-arvo]] -> 0 | M24: 0 | N24: =Taulukko1[[#This Row],[Vuotuiskustannus yhteensä €/v]]*Taulukko1[[#This Row],[Navetan/ peltyön osuus kustannuksista]] ->  | P24: =Taulukko1[[#This Row],[Vuotuiskustannus yhteensä]]/Taulukko1[[#This Row],[Pellon määrä/laskettava kone]] -> 
B25: Tarkkuussilppuri | F25: =Taulukko1[[#This Row],[Jälleenhankinta-arvo]]*Taulukko1[[#This Row],[JA% JHA:sta]] -> 0 | G25: =$C$4*(Taulukko1[[#This Row],[Jälleenhankinta-arvo]]+Taulukko1[[#This Row],[Jäännös arvo]])/2 -> 0 | H25: =(Taulukko1[[#This Row],[Jälleenhankinta-arvo]]-Taulukko1[[#This Row],[Jäännös arvo]])/Taulukko1[[#This Row],[Kestoaika]] ->  | I25: =$C$5*Taulukko1[[#This Row],[Jälleenhankinta-arvo]] -> 0 | J25: =$C$6*Taulukko1[[#This Row],[Jälleenhankinta-arvo]] -> 0 | M25: 0 | N25: =Taulukko1[[#This Row],[Vuotuiskustannus yhteensä €/v]]*Taulukko1[[#This Row],[Navetan/ peltyön osuus kustannuksista]] ->  | P25: =Taulukko1[[#This Row],[Vuotuiskustannus yhteensä]]/Taulukko1[[#This Row],[Pellon määrä/laskettava kone]] -> 
B26: Niittomurskain | F26: =Taulukko1[[#This Row],[Jälleenhankinta-arvo]]*Taulukko1[[#This Row],[JA% JHA:sta]] -> 0 | G26: =$C$4*(Taulukko1[[#This Row],[Jälleenhankinta-arvo]]+Taulukko1[[#This Row],[Jäännös arvo]])/2 -> 0 | H26: =(Taulukko1[[#This Row],[Jälleenhankinta-arvo]]-Taulukko1[[#This Row],[Jäännös arvo]])/Taulukko1[[#This Row],[Kestoaika]] ->  | I26: =$C$5*Taulukko1[[#This Row],[Jälleenhankinta-arvo]] -> 0 | J26: =$C$6*Taulukko1[[#This Row],[Jälleenhankinta-arvo]] -> 0 | L26: =SUM(G26:K26) ->  | M26: 0 | N26: =Taulukko1[[#This Row],[Vuotuiskustannus yhteensä €/v]]*Taulukko1[[#This Row],[Navetan/ peltyön osuus kustannuksista]] ->  | P26: =Taulukko1[[#This Row],[Vuotuiskustannus yhteensä]]/Taulukko1[[#This Row],[Pellon määrä/laskettava kone]] -> 
F27: =Taulukko1[[#This Row],[Jälleenhankinta-arvo]]*Taulukko1[[#This Row],[JA% JHA:sta]] -> 0 | G27: =$C$4*(Taulukko1[[#This Row],[Jälleenhankinta-arvo]]+Taulukko1[[#This Row],[Jäännös arvo]])/2 -> 0 | H27: =(Taulukko1[[#This Row],[Jälleenhankinta-arvo]]-Taulukko1[[#This Row],[Jäännös arvo]])/Taulukko1[[#This Row],[Kestoaika]] ->  | I27: =$C$5*Taulukko1[[#This Row],[Jälleenhankinta-arvo]] -> 0 | J27: =$C$6*Taulukko1[[#This Row],[Jälleenhankinta-arvo]] -> 0 | M27: 0 | N27: =Taulukko1[[#This Row],[Vuotuiskustannus yhteensä €/v]]*Taulukko1[[#This Row],[Navetan/ peltyön osuus kustannuksista]] ->  | P27: =Taulukko1[[#This Row],[Vuotuiskustannus yhteensä]]/Taulukko1[[#This Row],[Pellon määrä/laskettava kone]] -> 
F28: =Taulukko1[[#This Row],[Jälleenhankinta-arvo]]*Taulukko1[[#This Row],[JA% JHA:sta]] -> 0 | G28: =$C$4*(Taulukko1[[#This Row],[Jälleenhankinta-arvo]]+Taulukko1[[#This Row],[Jäännös arvo]])/2 -> 0 | H28: =(Taulukko1[[#This Row],[Jälleenhankinta-arvo]]-Taulukko1[[#This Row],[Jäännös arvo]])/Taulukko1[[#This Row],[Kestoaika]] ->  | I28: =$C$5*Taulukko1[[#This Row],[Jälleenhankinta-arvo]] -> 0 | J28: =$C$6*Taulukko1[[#This Row],[Jälleenhankinta-arvo]] -> 0 | M28: 0 | N28: =Taulukko1[[#This Row],[Vuotuiskustannus yhteensä €/v]]*Taulukko1[[#This Row],[Navetan/ peltyön osuus kustannuksista]] ->  | P28: =Taulukko1[[#This Row],[Vuotuiskustannus yhteensä]]/Taulukko1[[#This Row],[Pellon määrä/laskettava kone]] -> 
F29: =Taulukko1[[#This Row],[Jälleenhankinta-arvo]]*Taulukko1[[#This Row],[JA% JHA:sta]] -> 0 | G29: =$C$4*(Taulukko1[[#This Row],[Jälleenhankinta-arvo]]+Taulukko1[[#This Row],[Jäännös arvo]])/2 -> 0 | H29: =(Taulukko1[[#This Row],[Jälleenhankinta-arvo]]-Taulukko1[[#This Row],[Jäännös arvo]])/Taulukko1[[#This Row],[Kestoaika]] ->  | I29: =$C$5*Taulukko1[[#This Row],[Jälleenhankinta-arvo]] -> 0 | J29: =$C$6*Taulukko1[[#This Row],[Jälleenhankinta-arvo]] -> 0 | M29: 0 | N29: =Taulukko1[[#This Row],[Vuotuiskustannus yhteensä €/v]]*Taulukko1[[#This Row],[Navetan/ peltyön osuus kustannuksista]] ->  | P29: =Taulukko1[[#This Row],[Vuotuiskustannus yhteensä]]/Taulukko1[[#This Row],[Pellon määrä/laskettava kone]] -> 
F30: =Taulukko1[[#This Row],[Jälleenhankinta-arvo]]*Taulukko1[[#This Row],[JA% JHA:sta]] -> 0 | G30: =$C$4*(Taulukko1[[#This Row],[Jälleenhankinta-arvo]]+Taulukko1[[#This Row],[Jäännös arvo]])/2 -> 0 | H30: =(Taulukko1[[#This Row],[Jälleenhankinta-arvo]]-Taulukko1[[#This Row],[Jäännös arvo]])/Taulukko1[[#This Row],[Kestoaika]] ->  | I30: =$C$5*Taulukko1[[#This Row],[Jälleenhankinta-arvo]] -> 0 | J30: =$C$6*Taulukko1[[#This Row],[Jälleenhankinta-arvo]] -> 0 | M30: 0 | N30: =Taulukko1[[#This Row],[Vuotuiskustannus yhteensä €/v]]*Taulukko1[[#This Row],[Navetan/ peltyön osuus kustannuksista]] ->  | P30: =Taulukko1[[#This Row],[Vuotuiskustannus yhteensä]]/Taulukko1[[#This Row],[Pellon määrä/laskettava kone]] -> 
F31: =Taulukko1[[#This Row],[Jälleenhankinta-arvo]]*Taulukko1[[#This Row],[JA% JHA:sta]] -> 0 | G31: =$C$4*(Taulukko1[[#This Row],[Jälleenhankinta-arvo]]+Taulukko1[[#This Row],[Jäännös arvo]])/2 -> 0 | H31: =(Taulukko1[[#This Row],[Jälleenhankinta-arvo]]-Taulukko1[[#This Row],[Jäännös arvo]])/Taulukko1[[#This Row],[Kestoaika]] ->  | I31: =$C$5*Taulukko1[[#This Row],[Jälleenhankinta-arvo]] -> 0 | J31: =$C$6*Taulukko1[[#This Row],[Jälleenhankinta-arvo]] -> 0 | M31: 0 | N31: =Taulukko1[[#This Row],[Vuotuiskustannus yhteensä €/v]]*Taulukko1[[#This Row],[Navetan/ peltyön osuus kustannuksista]] ->  | P31: =Taulukko1[[#This Row],[Vuotuiskustannus yhteensä]]/Taulukko1[[#This Row],[Pellon määrä/laskettava kone]] -> 
F32: =Taulukko1[[#This Row],[Jälleenhankinta-arvo]]*Taulukko1[[#This Row],[JA% JHA:sta]] -> 0 | G32: =$C$4*(Taulukko1[[#This Row],[Jälleenhankinta-arvo]]+Taulukko1[[#This Row],[Jäännös arvo]])/2 -> 0 | H32: =(Taulukko1[[#This Row],[Jälleenhankinta-arvo]]-Taulukko1[[#This Row],[Jäännös arvo]])/Taulukko1[[#This Row],[Kestoaika]] ->  | I32: =$C$5*Taulukko1[[#This Row],[Jälleenhankinta-arvo]] -> 0 | J32: =$C$6*Taulukko1[[#This Row],[Jälleenhankinta-arvo]] -> 0 | M32: 0 | N32: =Taulukko1[[#This Row],[Vuotuiskustannus yhteensä €/v]]*Taulukko1[[#This Row],[Navetan/ peltyön osuus kustannuksista]] ->  | P32: =Taulukko1[[#This Row],[Vuotuiskustannus yhteensä]]/Taulukko1[[#This Row],[Pellon määrä/laskettava kone]] -> 
